fUSD/lending_fUSD_20250407
["ID","MTS","AMOUNT","RATE_DAILY","PERIOD"]
[357317068,1744005137714,-2000.0,0.00041096,13]
[357317069,1744005137723,-2000.0,0.00041096,13]
[357317070,1744005137733,-269.0,0.00041096,13]
[357317071,1744005137743,-4999.0,0.00041096,2]
[357317072,1744005137752,-152.0,0.00041139,4]
[357317073,1744005137762,-1500.0,0.00041482,10]
[357317074,1744005137771,-152.0,0.00041851,5]
[357317075,1744005137781,-172.34941768,0.00041886,16]
[357317076,1744005137790,-785.03,0.0004191,2]
[357317077,1744005137799,-9153.64859309,0.00041934,3]
[357317078,1744005137809,-1325.0,0.00041944,2]
[357317079,1744005137818,-1435.0,0.00041944,2]
[357317080,1744005137828,-1277.0,0.00041944,2]
[357317081,1744005137838,-151.0,0.00041944,2]
[357317082,1744005137847,-1191.0,0.00042,9]
[357317083,1744005137856,-1191.0,0.00042,5]
[357317084,1744005137866,-683.09,0.00042141,2]
[357317085,1744005137876,-1879.85464151,0.00042233,15]
[357317086,1744005137885,-16513.4561615,0.00042432,3]
[357317087,1744005137894,-4999.0,0.00042466,2]
[357317088,1744005137903,-152.0,0.00042564,6]
[357317089,1744005137915,-9153.64859309,0.0004299,3]
[357317090,1744005137925,-210.0,0.00043,2]
[357317091,1744005137934,-1000.0,0.00043,10]
[357317092,1744005137943,-1000.0,0.00043,3]
[357317093,1744005137953,-1000.0,0.00043,5]
[357317094,1744005137966,-1000.0,0.00043,5]
[357317095,1744005137976,-527.56079403,0.00043011,15]
[357317096,1744005137986,-152.0,0.00043276,7]
[357317097,1744005137995,-858.90747977,0.00043452,10]
[357317098,1744005138005,-1000.0,0.00043452,10]
[357317099,1744005138014,-1000.0,0.000435,10]
[357317100,1744005138025,-1000.0,0.000435,10]
[357317101,1744005138034,-683.08,0.00043594,2]
[357317102,1744005138044,-4999.0,0.00043836,2]
[357317103,1744005138054,-152.0,0.00043989,8]
[357317104,1744005138064,-9153.64859309,0.0004399,3]
[357317105,1744005138074,-1000.0,0.00044,11]
[357317106,1744005138083,-1000.0,0.00044,11]
[357317107,1744005138093,-877.0,0.00044,20]
[357317108,1744005138103,-1000.0,0.00044,12]
[357317109,1744005138112,-891.0,0.00044,7]
[357317110,1744005138122,-785.03,0.00044174,2]
[357317111,1744005138131,-442.65,0.00044239,2]
[357317112,1744005138140,-180.47150424,0.00044327,10]
[357317113,1744005138150,-1000.0,0.000445,13]
[357317114,1744005138162,-1000.0,0.000445,13]
[357317115,1744005138172,-151.0,0.000445,14]
[357317116,1744005138181,-151.0,0.000445,14]
[357317117,1744005138191,-151.0,0.000445,14]
[357317118,1744005138201,-151.0,0.000445,14]
[357317119,1744005138211,-152.0,0.00044702,9]
[357317120,1744005138221,-16513.4561615,0.00044925,3]
[357317121,1744005138231,-1325.0,0.00044944,2]
[357317122,1744005138241,-1435.0,0.00044944,2]
[357317123,1744005138251,-1269.555,0.00044944,2]
[357317124,1744005138261,-151.0,0.00044944,2]
[357317125,1744005138272,-16513.4561615,0.00044967,3]
[357317126,1744005138282,-27460.9457793,0.00044967,3]
[357317127,1744005138292,-151.35,0.00044967,2]
[357317128,1744005138303,-66053.824646,0.00044977,3]
[357317129,1744005138313,-54921.8915585,0.00044977,3]
[357317130,1744005138323,-151.35,0.00044977,2]
[357317131,1744005138335,-16513.4561615,0.0004498,3]
[357317132,1744005138346,-18307.2971862,0.0004498,3]
[357317133,1744005138356,-8463.08880521,0.00044987,10]
[357317134,1744005138367,-100000.0,0.00044987,10]
[357317135,1744005138378,-151.0,0.00044987,14]
[357317136,1744005138389,-151.0,0.00044987,14]
[357317137,1744005138399,-33026.912323,0.0004499,3]
[357317138,1744005138412,-36614.5943724,0.0004499,3]
[357317139,1744005138422,-64455.40552979,0.00045,2]
[357317140,1744005138433,-200.69,0.00045,2]
[357317141,1744005138443,-5000.0,0.00045,17]
[357317142,1744005138453,-2000.0,0.00045,3]
[357317143,1744005138463,-2000.0,0.00045,7]
[357317144,1744005138474,-1000.0,0.00045,15]
[357317145,1744005138485,-1172.55438512,0.00045,2]
[357317146,1744005138496,-1829.88,0.00045,14]
[357317147,1744005138506,-9153.64859309,0.00045196,3]
[357317148,1744005138516,-4999.0,0.00045206,2]
[357317149,1744005138527,-1879.85464151,0.00045344,15]
[357317150,1744005138536,-152.0,0.00045414,10]
[357317151,1744005138546,-527.56079403,0.00045567,15]
[357317152,1744005138556,-1000.0,0.00045679,7]
[357317153,1744005138566,-471.81,0.00045679,7]
[357317154,1744005138577,-1000.0,0.00045679,7]
[357317155,1744005138587,-152.0,0.00046127,11]
[357317156,1744005138597,-1829.88,0.000462,14]
[357317157,1744005138607,-331.26242438,0.000464,7]
[357317158,1744005138617,-785.03,0.00046438,2]
[357317159,1744005138626,-16513.4561615,0.00046566,3]
[357317160,1744005138636,-4999.0,0.00046576,2]
[357317161,1744005138646,-152.0,0.00046839,12]
[357317162,1744005138656,-9568.0,0.00047498,2]
[357317163,1744005138670,-152.0,0.00047552,13]
[357317164,1744005138680,-9153.64859309,0.00047935,4]
[357317165,1744005138690,-369.0,0.00047944,2]
[357317166,1744005138700,-151.0,0.00047944,2]
[357317167,1744005138712,-4999.0,0.00047945,2]
[357317168,1744005138723,-527.56079403,0.00048122,15]
[357317169,1744005138733,-1829.88,0.000482,14]
[357317170,1744005138743,-152.0,0.00048265,14]
[357317171,1744005138754,-151.35,0.00048446,2]
[357317172,1744005138764,-1879.85464151,0.00048456,15]
[357317173,1744005138774,-785.03,0.00048702,2]
[357317174,1744005138784,-152.0,0.00048977,15]
[357317175,1744005138794,-209.68,0.00049,10]
[357317176,1744005138804,-700.0,0.00049136,18]
[357317177,1744005138813,-700.0,0.00049136,18]
[357317178,1744005138823,-700.0,0.00049136,18]
[357317179,1744005138832,-700.0,0.00049136,18]
[357317180,1744005138843,-700.0,0.00049136,18]
[357317181,1744005138852,-172.34941768,0.00049215,25]
[357317182,1744005138863,-9153.64859309,0.0004928,4]
[357317183,1744005138875,-16513.4561615,0.0004929,4]
[357317184,1744005138884,-16513.4561615,0.00049295,4]
[357317185,1744005138894,-27460.9457793,0.00049295,4]
[357317186,1744005138904,-5000.0,0.000493,8]
[357317187,1744005138920,-5000.0,0.000493,9]
[357317188,1744005138929,-66053.824646,0.00049305,4]
[357317189,1744005138939,-54921.8915585,0.00049305,4]
[357317190,1744005138949,-500.0,0.00049315,16]
[357317191,1744005138961,-500.0,0.00049315,5]
[357317192,1744005138971,-500.0,0.00049315,2]
[357317193,1744005138980,-500.0,0.00049315,3]
[357317194,1744005138990,-153.028738,0.00049315,14]
[357317195,1744005139002,-500.0,0.00049315,10]
[357317196,1744005139012,-151.0,0.00049315,14]
[357317197,1744005139021,-151.0,0.00049315,14]
[357317198,1744005139031,-151.0,0.00049315,14]
[357317199,1744005139041,-500.0,0.00049315,2]
[357317200,1744005139051,-272.87,0.00049315,7]
[357317201,1744005139061,-3500.0,0.00049315,10]
[357317202,1744005139070,-526.60557138,0.00049315,7]
[357317203,1744005139079,-500.0,0.00049315,2]
[357317204,1744005139088,-500.0,0.00049315,2]
[357317205,1744005139097,-503.77168576,0.00049315,2]
[357317206,1744005139107,-500.0,0.00049315,2]
[357317207,1744005139116,-500.0,0.00049315,5]
[357317208,1744005139125,-500.0,0.00049315,2]
[357317209,1744005139134,-1470.13,0.00049315,8]
[357317210,1744005139144,-500.0,0.00049315,2]
[357317211,1744005139153,-500.0,0.00049315,2]
[357317212,1744005139165,-500.926054,0.00049315,2]
[357317213,1744005139175,-497.63900919,0.00049315,2]
[357317214,1744005139185,-500.0,0.00049315,120]
[357317215,1744005139195,-500.0,0.00049315,2]
[357317216,1744005139204,-500.0,0.00049315,120]
[357317217,1744005139214,-500.0,0.00049315,120]
[357317218,1744005139224,-700.0,0.00049315,28]
[357317219,1744005139233,-243.16922803,0.00049315,2]
[357317220,1744005139242,-1000.0,0.00049315,15]
[357317221,1744005139251,-1000.0,0.00049315,15]
[357317222,1744005139261,-1000.0,0.00049315,15]
[357317223,1744005139270,-1000.0,0.00049315,15]
[357317224,1744005139280,-1000.0,0.00049315,15]
[357317225,1744005139289,-1000.0,0.00049315,15]
[357317226,1744005139298,-1000.0,0.00049315,15]
[357317227,1744005139308,-1000.0,0.00049315,15]
[357317228,1744005139318,-1000.0,0.00049315,15]
[357317229,1744005139327,-1000.0,0.00049315,15]
[357317230,1744005139336,-1000.0,0.00049315,15]
[357317231,1744005139346,-1000.0,0.00049315,15]
[357317232,1744005139355,-1000.0,0.00049315,15]
[357317233,1744005139365,-1000.0,0.00049315,15]
[357317234,1744005139376,-1000.0,0.00049315,15]
[357317235,1744005139386,-1000.0,0.00049315,15]
[357317236,1744005139396,-1000.0,0.00049315,15]
[357317237,1744005139406,-1000.0,0.00049315,15]
[357317238,1744005139416,-1000.0,0.00049315,15]
[357317239,1744005139427,-1000.0,0.00049315,15]
[357317240,1744005139436,-1000.0,0.00049315,15]
[357317241,1744005139446,-1000.0,0.00049315,15]
[357317242,1744005139455,-1000.0,0.00049315,15]
[357317243,1744005139465,-1000.0,0.00049315,15]
[357317244,1744005139474,-1000.0,0.00049315,15]
[357317245,1744005139485,-1000.0,0.00049315,15]
[357317246,1744005139494,-1000.0,0.00049315,15]
[357317247,1744005139504,-1000.0,0.00049315,15]
[357317248,1744005139514,-1000.0,0.00049315,15]
[357317249,1744005139523,-1000.0,0.00049315,15]
[357317250,1744005139532,-1000.0,0.00049315,15]
[357317251,1744005139542,-1000.0,0.00049315,15]
[357317252,1744005139551,-1000.0,0.00049315,15]
[357317253,1744005139561,-1000.0,0.00049315,15]
[357317254,1744005139571,-1000.0,0.00049315,15]
[357317255,1744005139581,-1000.0,0.00049315,15]
[357317256,1744005139591,-1000.0,0.00049315,15]
[357317257,1744005139601,-1000.0,0.00049315,15]
[357317258,1744005139611,-1000.0,0.00049315,15]
[357317259,1744005139621,-1000.0,0.00049315,15]
[357317260,1744005139631,-1000.0,0.00049315,15]
[357317261,1744005139640,-1000.0,0.00049315,15]
[357317262,1744005139650,-1000.0,0.00049315,15]
[357317263,1744005139661,-1000.0,0.00049315,15]
[357317264,1744005139670,-1000.0,0.00049315,15]
[357317265,1744005139680,-1000.0,0.00049315,15]
[357317266,1744005139689,-1000.0,0.00049315,15]
[357317267,1744005139698,-1000.0,0.00049315,15]
[357317268,1744005139707,-1000.0,0.00049315,15]
[357317269,1744005139716,-1000.0,0.00049315,15]
[357317270,1744005139726,-1000.0,0.00049315,15]
[357317271,1744005139735,-1000.0,0.00049315,15]
[357317272,1744005139744,-1000.0,0.00049315,15]
[357317273,1744005139754,-1000.0,0.00049315,15]
[357317274,1744005139763,-1000.0,0.00049315,15]
[357317275,1744005139772,-1000.0,0.00049315,15]
[357317276,1744005139781,-1000.0,0.00049315,15]
[357317277,1744005139791,-1000.0,0.00049315,15]
[357317278,1744005139802,-1000.0,0.00049315,15]
[357317279,1744005139811,-1000.0,0.00049315,15]
[357317280,1744005139821,-1000.0,0.00049315,15]
[357317281,1744005139830,-1000.0,0.00049315,15]
[357317282,1744005139839,-1000.0,0.00049315,15]
[357317283,1744005139849,-1000.0,0.00049315,15]
[357317284,1744005139859,-1000.0,0.00049315,15]
[357317285,1744005139869,-1000.0,0.00049315,15]
[357317286,1744005139878,-1000.0,0.00049315,15]
[357317287,1744005139888,-1000.0,0.00049315,15]
[357317288,1744005139897,-1000.0,0.00049315,15]
[357317289,1744005139908,-1000.0,0.00049315,15]
[357317290,1744005139918,-1000.0,0.00049315,15]
[357317291,1744005139928,-1000.0,0.00049315,15]
[357317292,1744005139937,-1000.0,0.00049315,15]
[357317293,1744005139948,-1000.0,0.00049315,15]
[357317294,1744005139961,-1000.0,0.00049315,15]
[357317295,1744005139971,-1000.0,0.00049315,15]
[357317296,1744005139981,-1000.0,0.00049315,15]
[357317297,1744005139991,-1000.0,0.00049315,15]
[357317298,1744005140000,-1000.0,0.00049315,15]
[357317299,1744005140010,-1000.0,0.00049315,15]
[357317300,1744005140020,-1000.0,0.00049315,15]
[357317301,1744005140032,-1000.0,0.00049315,15]
[357317302,1744005140042,-767.0,0.00049315,15]
[357317303,1744005140052,-1000.0,0.00049315,15]
[357317304,1744005140061,-1000.0,0.00049315,15]
[357317305,1744005140071,-1000.0,0.00049315,15]
[357317306,1744005140080,-1000.0,0.00049315,15]
[357317307,1744005140090,-1000.0,0.00049315,15]
[357317308,1744005140100,-1000.0,0.00049315,15]
[357317309,1744005140110,-1000.0,0.00049315,15]
[357317310,1744005140119,-1000.0,0.00049315,15]
[357317311,1744005140130,-1000.0,0.00049315,15]
[357317312,1744005140139,-1000.0,0.00049315,15]
[357317313,1744005140149,-1000.0,0.00049315,15]
[357317314,1744005140159,-1000.0,0.00049315,15]
[357317315,1744005140169,-1000.0,0.00049315,15]
[357317316,1744005140179,-4999.0,0.00049315,2]
[357317317,1744005140189,-5834.89759597,0.000495,7]
[357317318,1744005140199,-1829.88,0.000495,14]
[357317319,1744005140209,-16513.4561615,0.00049569,4]
[357317320,1744005140219,-500.0,0.00049589,16]
[357317321,1744005140228,-500.0,0.00049589,5]
[357317322,1744005140238,-500.0,0.00049589,2]
[357317323,1744005140248,-500.0,0.00049589,3]
[357317324,1744005140259,-500.0,0.00049589,10]
[357317325,1744005140269,-511.29315973,0.00049589,2]
[357317326,1744005140279,-272.87,0.00049589,7]
[357317327,1744005140289,-3500.0,0.00049589,10]
[357317328,1744005140299,-500.0,0.00049589,2]
[357317329,1744005140308,-500.0,0.00049589,5]
[357317330,1744005140318,-501.49452565,0.00049589,2]
[357317331,1744005140328,-1470.13,0.00049589,8]
[357317332,1744005140338,-500.0,0.00049589,2]
[357317333,1744005140348,-500.0,0.00049589,2]
[357317334,1744005140358,-500.0,0.00049589,120]
[357317335,1744005140368,-500.0,0.00049589,120]
[357317336,1744005140378,-387.66679407,0.00049589,2]
[357317337,1744005140388,-500.0,0.00049589,120]
[357317338,1744005140399,-500.0,0.00049589,120]
[357317339,1744005140409,-16513.4561615,0.0004959,4]
[357317340,1744005140419,-16000.0,0.000496,2]
[357317341,1744005140661,-20799.86,0.000496,2]
[357317342,1744005140675,-152.0,0.0004969,16]
[357317343,1744005140686,-263.70385514,0.000498,14]
[357317344,1744005140696,-16513.4561615,0.00049853,4]
[357317345,1744005140708,-500.0,0.00049863,16]
[357317346,1744005140717,-500.0,0.00049863,5]
[357317347,1744005140727,-502.12631149,0.00049863,3]
[357317348,1744005140736,-500.0,0.00049863,10]
[357317349,1744005140746,-272.87,0.00049863,7]
[357317350,1744005140755,-3500.0,0.00049863,10]
[357317351,1744005140764,-161.10790794,0.00049863,2]
[357317352,1744005140774,-500.0,0.00049863,5]
[357317353,1744005140783,-1470.13,0.00049863,8]
[357317354,1744005140793,-500.0,0.00049863,2]
[357317355,1744005140802,-176.50429337,0.00049863,2]
[357317356,1744005140812,-500.0,0.00049863,120]
[357317357,1744005140821,-500.0,0.00049863,120]
[357317358,1744005140830,-500.0,0.00049863,120]
[357317359,1744005140841,-500.0,0.00049863,120]
[357317360,1744005140851,-16513.4561615,0.0004998,4]
[357317361,1744005140861,-39023.05951589,0.0004999,2]
[357317362,1744005140871,-16513.4561615,0.0004999,4]
[357317363,1744005140880,-2000.0,0.0005,7]
[357317364,1744005140889,-2000.0,0.0005,3]
[357317365,1744005140898,-2635.1905133,0.0005,5]
[357317366,1744005140908,-2930.81443059,0.0005,3]
[357317367,1744005140918,-1135.89614372,0.0005,2]
[357317368,1744005140927,-764.88132205,0.0005,7]
[357317369,1744005140937,-1515.97492433,0.0005,2]
[357317370,1744005140946,-210.79092891,0.0005,2]
[357317371,1744005140956,-10709.28000029,0.0005,2]
[357317372,1744005140969,-1002.0,0.0005,10]
[357317373,1744005140978,-1855.15089414,0.0005,5]
[357317374,1744005140988,-6480.80095845,0.0005,5]
[357317375,1744005140997,-1000.0,0.0005,20]
[357317376,1744005141007,-2666.89418285,0.0005,10]
[357317377,1744005141016,-517.98,0.0005,2]
[357317378,1744005141025,-442.65,0.00050036,2]
[357317379,1744005141035,-16513.4561615,0.0005009,4]
[357317380,1744005141045,-1442.27967748,0.000501,7]
[357317381,1744005141055,-16000.0,0.000501,2]
[357317382,1744005141064,-20799.86,0.000501,2]
[357317383,1744005141073,-2129.95413093,0.00050132,16]
[357317384,1744005141082,-226.12640623,0.00050136,16]
[357317385,1744005141092,-500.0,0.00050136,5]
[357317386,1744005141101,-500.0,0.00050136,10]
[357317387,1744005141111,-272.87,0.00050136,7]
[357317388,1744005141120,-3500.0,0.00050136,10]
[357317389,1744005141130,-500.0,0.00050136,5]
[357317390,1744005141140,-1470.13,0.00050136,8]
[357317391,1744005141150,-500.0,0.00050136,2]
[357317392,1744005141161,-500.0,0.00050136,120]
[357317393,1744005141171,-500.0,0.00050136,120]
[357317394,1744005141180,-500.0,0.00050136,120]
[357317395,1744005141190,-500.0,0.00050136,120]
[357317396,1744005141200,-1418.91603071,0.00050137,16]
[357317397,1744005141210,-1984.80910075,0.00050137,16]
[357317398,1744005141219,-150.0,0.00050374,7]
[357317399,1744005141228,-16000.0,0.000504,2]
[357317400,1744005141240,-20799.86,0.000504,2]
[357317401,1744005141249,-1829.88,0.000504,14]
[357317402,1744005141259,-152.0,0.00050402,17]
[357317403,1744005141268,-500.0,0.0005041,5]
[357317404,1744005141278,-500.0,0.0005041,10]
[357317405,1744005141287,-272.87,0.0005041,7]
[357317406,1744005141297,-3500.0,0.0005041,10]
[357317407,1744005141306,-500.0,0.0005041,5]
[357317408,1744005141316,-1470.13,0.0005041,8]
[357317409,1744005141325,-500.0,0.0005041,2]
[357317410,1744005141334,-500.0,0.0005041,120]
[357317411,1744005141343,-500.0,0.0005041,120]
[357317412,1744005141352,-500.0,0.0005041,120]
[357317413,1744005141363,-527.56079403,0.00050678,15]
[357317414,1744005141372,-500.0,0.00050684,5]
[357317415,1744005141382,-500.0,0.00050684,10]
[357317416,1744005141392,-272.87,0.00050684,7]
[357317417,1744005141402,-3500.0,0.00050684,10]
[357317418,1744005141414,-500.0,0.00050684,5]
[357317419,1744005141423,-1470.13,0.00050684,8]
[357317420,1744005141433,-500.0,0.00050684,2]
[357317421,1744005141442,-500.0,0.00050684,120]
[357317422,1744005141452,-500.0,0.00050684,120]
[357317423,1744005141462,-500.0,0.00050684,120]
[357317424,1744005141471,-4999.0,0.00050685,2]
[357317425,1744005141480,-16000.0,0.000507,2]
[357317426,1744005141489,-20799.86,0.000507,2]
[357317427,1744005141499,-16000.0,0.000508,2]
[357317428,1744005141508,-20799.86,0.000508,2]
[357317429,1744005141518,-224.834771,0.00050821,16]
[357317430,1744005141528,-150.0,0.00050916,7]
[357317431,1744005141537,-500.0,0.00050958,5]
[357317432,1744005141546,-500.0,0.00050958,10]
[357317433,1744005141555,-272.87,0.00050958,7]
[357317434,1744005141565,-3500.0,0.00050958,10]
[357317435,1744005141574,-500.0,0.00050958,5]
[357317436,1744005141584,-1470.13,0.00050958,8]
[357317437,1744005141593,-500.0,0.00050958,2]
[357317438,1744005141603,-500.0,0.00050958,120]
[357317439,1744005141612,-500.0,0.00050958,120]
[357317440,1744005141621,-190.71969983,0.00050958,120]
[357317441,1744005141631,-785.03,0.00050966,2]
[357317442,1744005141640,-152.0,0.00051115,18]
[357317443,1744005141649,-150.0,0.00051189,7]
[357317444,1744005141659,-150.0,0.00051214,7]
[357317445,1744005141669,-168.94282914,0.00051232,5]
[357317446,1744005141678,-500.0,0.00051232,10]
[357317447,1744005141687,-272.87,0.00051232,7]
[357317448,1744005141697,-3500.0,0.00051232,10]
[357317449,1744005141706,-500.0,0.00051232,5]
[357317450,1744005141715,-1470.13,0.00051232,8]
[357317451,1744005141724,-500.0,0.00051232,2]
[357317452,1744005141734,-500.0,0.00051232,120]
[357317453,1744005141743,-500.0,0.00051232,120]
[357317454,1744005141752,-150.0,0.00051292,7]
[357317455,1744005141761,-150.0,0.00051435,7]
[357317456,1744005141771,-500.0,0.00051506,10]
[357317457,1744005141780,-272.87,0.00051506,7]
[357317458,1744005141789,-3500.0,0.00051506,10]
[357317459,1744005141799,-500.0,0.00051506,5]
[357317460,1744005141809,-1470.13,0.00051506,8]
[357317461,1744005141818,-536.71929048,0.00051506,2]
[357317462,1744005141828,-500.0,0.00051506,120]
[357317463,1744005141838,-500.0,0.00051506,120]
[357317464,1744005141847,-1879.85464151,0.00051567,15]
[357317465,1744005141856,-2000.0,0.0005164,3]
[357317466,1744005141866,-500.0,0.0005178,10]
[357317467,1744005141875,-272.87,0.0005178,7]
[357317468,1744005141885,-3500.0,0.0005178,10]
[357317469,1744005141895,-500.0,0.0005178,5]
[357317470,1744005141904,-1470.13,0.0005178,8]
[357317471,1744005141917,-313.11,0.0005178,120]
[357317472,1744005141927,-500.0,0.0005178,120]
[357317473,1744005141936,-150.0,0.0005179,7]
[357317474,1744005141946,-383.0,0.000518,3]
[357317475,1744005141959,-300.0,0.00051821,7]
[357317476,1744005141968,-152.0,0.00051828,19]
[357317477,1744005141978,-150.0,0.00051892,7]
[357317478,1744005141987,-1829.88,0.00052,14]
[357317479,1744005141997,-500.0,0.00052054,10]
[357317480,1744005142007,-272.87,0.00052054,7]
[357317481,1744005142016,-3500.0,0.00052054,10]
[357317482,1744005142026,-500.0,0.00052054,5]
[357317483,1744005142036,-1470.13,0.00052054,8]
[357317484,1744005142046,-500.0,0.00052054,120]
[357317485,1744005142055,-4999.0,0.00052055,2]
[357317486,1744005142064,-251.0,0.000523,2]
[357317487,1744005142075,-1134.04032712,0.000523,2]
[357317488,1744005142084,-500.0,0.00052328,10]
[357317489,1744005142094,-272.87,0.00052328,7]
[357317490,1744005142104,-3500.0,0.00052328,10]
[357317491,1744005142114,-500.0,0.00052328,5]
[357317492,1744005142125,-1470.13,0.00052328,8]
[357317493,1744005142135,-500.0,0.00052328,120]
[357317494,1744005142144,-152.0,0.0005254,20]
[357317495,1744005142155,-516.70846896,0.00052602,10]
[357317496,1744005142168,-272.87,0.00052602,7]
[357317497,1744005142179,-3500.0,0.00052602,10]
[357317498,1744005142189,-500.0,0.00052602,5]
[357317499,1744005142199,-1470.13,0.00052602,8]
[357317500,1744005142209,-500.0,0.00052602,120]
[357317501,1744005142219,-2010.6792,0.00052612,3]
[357317502,1744005142228,-2003.2067,0.00052612,3]
[357317503,1744005142238,-150.0,0.00052814,7]
[357317504,1744005142248,-272.87,0.00052876,7]
[357317505,1744005142258,-1038.76442877,0.00052876,10]
[357317506,1744005142267,-500.0,0.00052876,5]
[357317507,1744005142276,-1470.13,0.00052876,8]
[357317508,1744005142285,-482.22261161,0.00052876,120]
[357317509,1744005142295,-300.0,0.00052921,7]
[357317510,1744005142305,-150.0,0.00052936,7]
[357317511,1744005142314,-575.19234597,0.00053,2]
[357317512,1744005142323,-150.0,0.0005309,7]
[357317513,1744005142333,-272.87,0.0005315,7]
[357317514,1744005142342,-500.0,0.0005315,5]
[357317515,1744005142351,-1470.13,0.0005315,8]
[357317516,1744005142361,-785.03,0.0005323,2]
[357317517,1744005142371,-527.56079403,0.00053233,15]
[357317518,1744005142382,-152.0,0.00053253,21]
[357317519,1744005142391,-797.73875261,0.00053266,21]
[357317520,1744005142401,-150.0,0.00053305,7]
[357317521,1744005142413,-445.86578553,0.0005331,2]
[357317522,1744005142422,-150.0,0.00053348,7]
[357317523,1744005142432,-150.0,0.00053365,7]
[357317524,1744005142442,-3207.06,0.000534,2]
[357317525,1744005142452,-272.87,0.00053424,7]
[357317526,1744005142462,-228.9854729,0.00053424,5]
[357317527,1744005142474,-1470.13,0.00053424,8]
[357317528,1744005142485,-4999.0,0.00053425,2]
[357317529,1744005142496,-2004.6814,0.0005343,3]
[357317530,1744005142505,-2008.1382,0.0005343,3]
[357317531,1744005142515,-486.71145673,0.00053471,10]
[357317532,1744005142524,-150.0,0.00053502,7]
[357317533,1744005142534,-272.87,0.00053698,7]
[357317534,1744005142544,-1470.13,0.00053698,8]
[357317535,1744005142554,-150.0,0.00053782,7]
[357317536,1744005142565,-152.0,0.00053966,22]
[357317537,1744005142576,-272.87,0.00053972,7]
[357317538,1744005142585,-1470.13,0.00053972,8]
[357317539,1744005142595,-3731.54354521,0.00054,5]
[357317540,1744005142604,-150.0,0.00054008,7]
[357317541,1744005142613,-272.87,0.00054246,7]
[357317542,1744005142624,-1470.13,0.00054246,8]
[357317543,1744005142633,-150.0,0.00054255,7]
[357317544,1744005142643,-150.0,0.00054381,7]
[357317545,1744005142653,-1369.47716657,0.00054456,10]
[357317546,1744005142666,-272.87,0.0005452,7]
[357317547,1744005142676,-1470.13,0.0005452,8]
[357317548,1744005142686,-1879.85464151,0.00054678,15]
[357317549,1744005142696,-152.0,0.00054678,23]
[357317550,1744005142707,-272.87,0.00054794,7]
[357317551,1744005142717,-1470.13,0.00054794,8]
[357317552,1744005142728,-4999.0,0.00054795,2]
[357317553,1744005142738,-16659.53972594,0.0005499,15]
[357317554,1744005142748,-82005.53478754,0.00055,5]
[357317555,1744005142757,-32714.08592079,0.00055,2]
[357317556,1744005142766,-272.87,0.00055068,7]
[357317557,1744005142776,-1470.13,0.00055068,8]
[357317558,1744005142786,-3207.06,0.000552,2]
[357317559,1744005142795,-272.87,0.00055342,7]
[357317560,1744005142805,-1470.13,0.00055342,8]
[357317561,1744005142814,-152.0,0.00055391,24]
[357317562,1744005142824,-150.0,0.00055441,14]
[357317563,1744005142834,-785.03,0.00055493,2]
[357317564,1744005142844,-273.04937863,0.00055616,7]
[357317565,1744005142853,-1470.15295486,0.00055616,8]
[357317566,1744005142863,-527.56079403,0.00055789,15]
[357317567,1744005142872,-152.0,0.00056103,25]